[Event "*** Titled Tuesday Blitz"]
[Site "Chess.com"]
[Date "2021.04.06"]
[Round "3"]
[White "ckgchess"]
[Black "ErikRonka"]
[Result "1/2-1/2"]
[WhiteElo "2685"]
[BlackElo "2445"]
[TimeControl "180+1"]
[EndTime "10:29:59 PDT"]
[Termination "Game drawn - insufficient material"]

1. e4 {[%clk 0:03:00.9]} 1... c6 {[%clk 0:02:59.5]} 2. Ke2 {[%clk 0:03:01.4]}
2... d5 {[%clk 0:03:00.4]} 3. e5 {[%clk 0:03:01.1]} 3... c5 {[%clk 0:02:56.1]}
4. f4 {[%clk 0:02:59.4]} 4... Nc6 {[%clk 0:02:55.8]} 5. Kf2 {[%clk 0:02:59.7]}
5... f6 {[%clk 0:02:51.7]} 6. Bb5 {[%clk 0:02:56.7]} 6... Nh6 {[%clk 0:02:40.7]}
7. Nf3 {[%clk 0:02:37.6]} 7... e6 {[%clk 0:02:18.9]} 8. Re1 {[%clk 0:02:33.5]}
8... Be7 {[%clk 0:02:10.7]} 9. d3 {[%clk 0:02:30.2]} 9... O-O {[%clk 0:02:05.1]}
10. Bxc6 {[%clk 0:02:30.4]} 10... bxc6 {[%clk 0:02:04.7]} 11. Kg1 {[%clk
0:02:31.3]} 11... Nf7 {[%clk 0:01:50.8]} 12. Nc3 {[%clk 0:02:25.1]} 12... fxe5
{[%clk 0:01:48.4]} 13. fxe5 {[%clk 0:02:25.5]} 13... a5 {[%clk 0:01:42.5]} 14.
b3 {[%clk 0:02:23.1]} 14... Ba6 {[%clk 0:01:41.5]} 15. Kh1 {[%clk 0:02:20]}
15... c4 {[%clk 0:01:39.4]} 16. bxc4 {[%clk 0:02:19.1]} 16... dxc4 {[%clk
0:01:39.3]} 17. d4 {[%clk 0:02:19.7]} 17... Bb4 {[%clk 0:01:17.7]} 18. Bd2
{[%clk 0:02:18.6]} 18... c5 {[%clk 0:01:18.2]} 19. a3 {[%clk 0:02:10.3]} 19...
cxd4 {[%clk 0:01:17.3]} 20. axb4 {[%clk 0:02:08.5]} 20... dxc3 {[%clk
0:01:16.9]} 21. Bxc3 {[%clk 0:02:09.4]} 21... axb4 {[%clk 0:01:11.1]} 22. Bxb4
{[%clk 0:02:09.3]} 22... Re8 {[%clk 0:01:02.1]} 23. Qxd8 {[%clk 0:01:48.5]}
23... Rexd8 {[%clk 0:01:03]} 24. h3 {[%clk 0:01:42]} 24... Bb7 {[%clk
0:01:02.4]} 25. Rxa8 {[%clk 0:01:41.8]} 25... Bxa8 {[%clk 0:00:59.1]} 26. Nd2
{[%clk 0:01:39.6]} 26... Bd5 {[%clk 0:00:53.1]} 27. Bc3 {[%clk 0:01:38.9]} 27...
Nh6 {[%clk 0:00:43.5]} 28. Kh2 {[%clk 0:01:26.9]} 28... Ra8 {[%clk 0:00:36.3]}
29. Ra1 {[%clk 0:01:25.8]} 29... Rxa1 {[%clk 0:00:34.1]} 30. Bxa1 {[%clk
0:01:26.7]} 30... Nf5 {[%clk 0:00:34.5]} 31. Nf1 {[%clk 0:01:03.5]} 31... Be4
{[%clk 0:00:30.4]} 32. g4 {[%clk 0:01:01.2]} 32... Nh4 {[%clk 0:00:19.3]} 33.
Kg3 {[%clk 0:01:01.1]} 33... g5 {[%clk 0:00:18.2]} 34. Ne3 {[%clk 0:01:00.6]}
34... Nf3 {[%clk 0:00:15.2]} 35. Bc3 {[%clk 0:00:57.9]} 35... Nh4 {[%clk
0:00:13]} 36. Bd2 {[%clk 0:00:54.6]} 36... Ng6 {[%clk 0:00:12.7]} 37. Bc3 {[%clk
0:00:52]} 37... h6 {[%clk 0:00:11.1]} 38. Bd4 {[%clk 0:00:49]} 38... Nf4 {[%clk
0:00:11]} 39. Bb2 {[%clk 0:00:46.1]} 39... Ne2+ {[%clk 0:00:10.3]} 40. Kf2
{[%clk 0:00:46]} 40... Nf4 {[%clk 0:00:10.5]} 41. Kg3 {[%clk 0:00:41.2]} 41...
Ne2+ {[%clk 0:00:10.7]} 42. Kh2 {[%clk 0:00:41.9]} 42... Nf4 {[%clk 0:00:11.2]}
43. c3 {[%clk 0:00:31.3]} 43... Bd3 {[%clk 0:00:09.5]} 44. Kg3 {[%clk
0:00:29.9]} 44... Ne2+ {[%clk 0:00:09.2]} 45. Kf2 {[%clk 0:00:29.4]} 45... Nf4
{[%clk 0:00:10.1]} 46. Kg3 {[%clk 0:00:28.6]} 46... Ne2+ {[%clk 0:00:10.3]} 47.
Kf3 {[%clk 0:00:29.3]} 47... Nf4 {[%clk 0:00:11.2]} 48. h4 {[%clk 0:00:29.8]}
48... Kf7 {[%clk 0:00:11.5]} 49. h5 {[%clk 0:00:28]} 49... Nd5 {[%clk
0:00:11.2]} 50. Ng2 {[%clk 0:00:25.4]} 50... Ne7 {[%clk 0:00:10.4]} 51. Ke3
{[%clk 0:00:24.1]} 51... Nc6 {[%clk 0:00:10.2]} 52. Ne1 {[%clk 0:00:22.2]} 52...
Nxe5 {[%clk 0:00:10.2]} 53. Kd4 {[%clk 0:00:23.1]} 53... Nxg4 {[%clk 0:00:10.1]}
54. Nxd3 {[%clk 0:00:23.7]} 54... cxd3 {[%clk 0:00:11]} 55. Kxd3 {[%clk
0:00:24.6]} 55... Nf6 {[%clk 0:00:11]} 56. c4 {[%clk 0:00:24.7]} 56... Nxh5
{[%clk 0:00:11.3]} 57. c5 {[%clk 0:00:25.6]} 57... Nf4+ {[%clk 0:00:11.4]} 58.
Ke4 {[%clk 0:00:25.8]} 58... Nd5 {[%clk 0:00:12.2]} 59. c6 {[%clk 0:00:22.9]}
59... h5 {[%clk 0:00:12.3]} 60. Ba3 {[%clk 0:00:19.5]} 60... h4 {[%clk 0:00:12]}
61. Bd6 {[%clk 0:00:17.8]} 61... Ke8 {[%clk 0:00:10.3]} 62. Ke5 {[%clk
0:00:17.4]} 62... Kd8 {[%clk 0:00:09.2]} 63. Kxe6 {[%clk 0:00:17.1]} 63... Nc7+
{[%clk 0:00:09.3]} 64. Kf5 {[%clk 0:00:17.6]} 64... h3 {[%clk 0:00:09.2]} 65.
Kxg5 {[%clk 0:00:16.9]} 65... Ne8 {[%clk 0:00:09.4]} 66. Be5 {[%clk 0:00:16.8]}
66... Kc8 {[%clk 0:00:09.4]} 67. Kg4 {[%clk 0:00:17]} 67... Nc7 {[%clk
0:00:09.5]} 68. Kxh3 {[%clk 0:00:17.3]} 68... Nd5 {[%clk 0:00:09.8]} 69. Bd6
{[%clk 0:00:15.7]} 69... Ne7 {[%clk 0:00:08.9]} 70. Bxe7 {[%clk 0:00:12.4]}
70... Kc7 {[%clk 0:00:09.8]} 71. Kg4 {[%clk 0:00:12.6]} 71... Kxc6 {[%clk
0:00:10.7]} 1/2-1/2

[Event "*** Titled Tuesday Blitz"]
[Site "Chess.com"]
[Date "2021.04.06"]
[Round "3"]
[White "Artyom_ChessMate"]
[Black "Diaschess88"]
[Result "0-1"]
[WhiteElo "2530"]
[BlackElo "2390"]
[TimeControl "180+1"]
[EndTime "10:30:05 PDT"]
[Termination "Diaschess88 won on time"]

1. e4 {[%clk 0:03:00.9]} 1... c6 {[%clk 0:02:53.3]} 2. d4 {[%clk 0:03:00.9]}
2... d5 {[%clk 0:02:52.5]} 3. exd5 {[%clk 0:03:01.8]} 3... cxd5 {[%clk
0:02:52.2]} 4. Bd3 {[%clk 0:03:02.4]} 4... Nc6 {[%clk 0:02:51.8]} 5. c3 {[%clk
0:03:02.5]} 5... Nf6 {[%clk 0:02:50.4]} 6. Bf4 {[%clk 0:03:02.1]} 6... g6 {[%clk
0:02:39]} 7. Nf3 {[%clk 0:03:01.7]} 7... Bf5 {[%clk 0:02:38.3]} 8. Ne5 {[%clk
0:03:01.6]} 8... Bxd3 {[%clk 0:02:32.5]} 9. Nxd3 {[%clk 0:03:02.5]} 9... e6
{[%clk 0:02:26.8]} 10. O-O {[%clk 0:03:00.4]} 10... Bd6 {[%clk 0:02:26.7]} 11.
Bxd6 {[%clk 0:02:58]} 11... Qxd6 {[%clk 0:02:26.5]} 12. Nd2 {[%clk 0:02:58.9]}
12... O-O {[%clk 0:02:25.6]} 13. Qe2 {[%clk 0:02:59.1]} 13... Kg7 {[%clk
0:02:24.7]} 14. Rae1 {[%clk 0:02:58.5]} 14... Nd7 {[%clk 0:02:13.5]} 15. f4
{[%clk 0:02:51.6]} 15... Rae8 {[%clk 0:02:13.1]} 16. Rf3 {[%clk 0:02:51.6]}
16... f6 {[%clk 0:02:11.3]} 17. Re3 {[%clk 0:02:37.5]} 17... Kf7 {[%clk
0:02:03.1]} 18. Qf2 {[%clk 0:02:28]} 18... Re7 {[%clk 0:01:52.1]} 19. Nf3 {[%clk
0:01:44.3]} 19... Kg7 {[%clk 0:01:51.1]} 20. Qh4 {[%clk 0:01:37.9]} 20... Rfe8
{[%clk 0:01:42.4]} 21. g4 {[%clk 0:00:59.3]} 21... h6 {[%clk 0:01:18.6]} 22. g5
{[%clk 0:00:50]} 22... hxg5 {[%clk 0:01:17.9]} 23. fxg5 {[%clk 0:00:50.1]} 23...
Rh8 {[%clk 0:01:18.5]} 24. Qg3 {[%clk 0:00:43.8]} 24... Qxg3+ {[%clk 0:01:14.9]}
25. hxg3 {[%clk 0:00:44.7]} 25... Rhe8 {[%clk 0:01:03.3]} 26. gxf6+ {[%clk
0:00:40.2]} 26... Nxf6 {[%clk 0:00:58.1]} 27. Ng5 {[%clk 0:00:39.9]} 27... e5
{[%clk 0:00:21.9]} 28. dxe5 {[%clk 0:00:39.9]} 28... Ng4 {[%clk 0:00:21]} 29.
Rf3 {[%clk 0:00:36.3]} 29... Ngxe5 {[%clk 0:00:20.9]} 30. Nxe5 {[%clk 0:00:30]}
30... Nxe5 {[%clk 0:00:20.9]} 31. Rff1 {[%clk 0:00:30.9]} 31... Nd3 {[%clk
0:00:17.8]} 32. Rxe7+ {[%clk 0:00:24.7]} 32... Rxe7 {[%clk 0:00:18.7]} 33. b3
{[%clk 0:00:25.6]} 33... Kh6 {[%clk 0:00:16.5]} 34. Nf7+ {[%clk 0:00:17.1]}
34... Kh5 {[%clk 0:00:16.3]} 35. Rd1 {[%clk 0:00:10]} 35... Re3 {[%clk
0:00:16.2]} 36. Kg2 {[%clk 0:00:07.3]} 36... g5 {[%clk 0:00:16.6]} 37. Nd6
{[%clk 0:00:06.8]} 37... Kg4 {[%clk 0:00:15.2]} 38. Nf7 {[%clk 0:00:04.4]} 38...
Rxg3+ {[%clk 0:00:13.7]} 39. Kh2 {[%clk 0:00:03.7]} 39... Nf4 {[%clk 0:00:11.3]}
40. Ne5+ {[%clk 0:00:03.1]} 40... Kh4 {[%clk 0:00:11.6]} 41. Rd4 {[%clk
0:00:01.8]} 41... Rh3+ {[%clk 0:00:11.8]} 42. Kg1 {[%clk 0:00:01.9]} 42... Rg3+
{[%clk 0:00:12.7]} 43. Kf2 {[%clk 0:00:02.1]} 43... Rg2+ {[%clk 0:00:13.3]} 44.
Kf1 {[%clk 0:00:02.7]} 44... Rxa2 {[%clk 0:00:14.2]} 45. Ng6+ {[%clk 0:00:03.2]}
45... Kg3 {[%clk 0:00:14.4]} 46. Nxf4 {[%clk 0:00:04.1]} 46... gxf4 {[%clk
0:00:14.2]} 47. Rxd5 {[%clk 0:00:04.6]} 47... Ra1+ {[%clk 0:00:13.4]} 48. Ke2
{[%clk 0:00:04.8]} 48... Ra2+ {[%clk 0:00:14.3]} 49. Kd3 {[%clk 0:00:04.9]}
49... f3 {[%clk 0:00:14.8]} 50. Rg5+ {[%clk 0:00:05.1]} 50... Kh2 {[%clk
0:00:14.2]} 51. Rg7 {[%clk 0:00:06]} 51... f2 {[%clk 0:00:13.4]} 52. Rh7+ {[%clk
0:00:06.5]} 52... Kg1 {[%clk 0:00:13.6]} 53. Rg7+ {[%clk 0:00:07.4]} 53... Kf1
{[%clk 0:00:12.5]} 54. Rxb7 {[%clk 0:00:07.5]} 54... Ke1 {[%clk 0:00:09.2]} 55.
Re7+ {[%clk 0:00:07.4]} 55... Kd1 {[%clk 0:00:09.2]} 56. Rf7 {[%clk 0:00:05]}
56... a5 {[%clk 0:00:09.2]} 57. Ke3 {[%clk 0:00:05]} 57... Ke1 {[%clk
0:00:09.2]} 58. Kd3 {[%clk 0:00:02.8]} 58... f1=Q+ {[%clk 0:00:09.2]} 59. Rxf1+
{[%clk 0:00:03.2]} 59... Kxf1 {[%clk 0:00:09.9]} 60. Kc4 {[%clk 0:00:04.1]}
60... Ke2 {[%clk 0:00:09.9]} 61. Kb5 {[%clk 0:00:04.6]} 61... Kd3 {[%clk
0:00:09.8]} 62. c4 {[%clk 0:00:05.2]} 62... Kd4 {[%clk 0:00:09]} 63. c5 {[%clk
0:00:05.7]} 63... Kd5 {[%clk 0:00:09]} 64. b4 {[%clk 0:00:06.6]} 64... axb4
{[%clk 0:00:08.9]} 65. Kxb4 {[%clk 0:00:07.5]} 65... Kc6 {[%clk 0:00:08.9]} 0-1

[Event "*** Titled Tuesday Blitz"]
[Site "Chess.com"]
[Date "2021.04.06"]
[Round "3"]
[White "Semetey"]
[Black "joejan"]
[Result "1/2-1/2"]
[WhiteElo "2510"]
[BlackElo "2284"]
[TimeControl "180+1"]
[EndTime "10:30:08 PDT"]
[Termination "Game drawn - insufficient material"]

1. e4 {[%clk 0:02:55]} 1... c5 {[%clk 0:02:59.4]} 2. Nc3 {[%clk 0:02:54.7]} 2...
a6 {[%clk 0:02:58.5]} 3. a4 {[%clk 0:02:52.8]} 3... Nc6 {[%clk 0:02:57.2]} 4. f4
{[%clk 0:02:52.3]} 4... g6 {[%clk 0:02:54.9]} 5. Nf3 {[%clk 0:02:52.1]} 5... Bg7
{[%clk 0:02:54.7]} 6. Bc4 {[%clk 0:02:52.7]} 6... e6 {[%clk 0:02:54.1]} 7. e5
{[%clk 0:02:52.6]} 7... Nge7 {[%clk 0:02:51.1]} 8. Ne4 {[%clk 0:02:52.1]} 8...
O-O {[%clk 0:02:47.8]} 9. Nxc5 {[%clk 0:02:50.7]} 9... d6 {[%clk 0:02:46.4]} 10.
exd6 {[%clk 0:02:45.8]} 10... Qxd6 {[%clk 0:02:46.2]} 11. Nd3 {[%clk 0:02:45.7]}
11... b6 {[%clk 0:02:38.2]} 12. O-O {[%clk 0:02:45.3]} 12... Bb7 {[%clk
0:02:38.4]} 13. Kh1 {[%clk 0:02:44.3]} 13... Rac8 {[%clk 0:02:31.9]} 14. Ba2
{[%clk 0:02:35.9]} 14... Nf5 {[%clk 0:02:31.2]} 15. Bb1 {[%clk 0:02:13.4]} 15...
Ncd4 {[%clk 0:02:21.1]} 16. Nxd4 {[%clk 0:02:12.1]} 16... Qxd4 {[%clk
0:02:20.5]} 17. c3 {[%clk 0:02:05.6]} 17... Qd5 {[%clk 0:02:20]} 18. Ne1 {[%clk
0:02:03.1]} 18... e5 {[%clk 0:02:13.6]} 19. Bxf5 {[%clk 0:01:59.4]} 19... gxf5
{[%clk 0:02:11.6]} 20. fxe5 {[%clk 0:01:59.3]} 20... Bxe5 {[%clk 0:02:07.8]} 21.
Rxf5 {[%clk 0:01:57]} 21... Qe4 {[%clk 0:02:07.7]} 22. Rg5+ {[%clk 0:01:48.5]}
22... Kh8 {[%clk 0:02:07.5]} 23. d4 {[%clk 0:01:49]} 23... Bf4 {[%clk
0:02:02.4]} 24. Bxf4 {[%clk 0:01:48.1]} 24... Qxf4 {[%clk 0:02:01.9]} 25. Nf3
{[%clk 0:01:30.5]} 25... Bxf3 {[%clk 0:02:00.1]} 26. Qc1 {[%clk 0:01:30.6]}
26... Qxc1+ {[%clk 0:01:56.7]} 27. Rxc1 {[%clk 0:01:31.5]} 27... Bc6 {[%clk
0:01:54.4]} 28. a5 {[%clk 0:01:30.2]} 28... b5 {[%clk 0:01:53]} 29. Kg1 {[%clk
0:01:26.9]} 29... f5 {[%clk 0:01:51.4]} 30. Rf1 {[%clk 0:01:25.9]} 30... Be4
{[%clk 0:01:50.9]} 31. Rf4 {[%clk 0:01:23]} 31... Rg8 {[%clk 0:01:48.1]} 32.
Rxg8+ {[%clk 0:01:20.1]} 32... Rxg8 {[%clk 0:01:48.4]} 33. g3 {[%clk 0:01:20.7]}
33... Kg7 {[%clk 0:01:45.8]} 34. Kf2 {[%clk 0:01:20.8]} 34... Kf6 {[%clk
0:01:45.5]} 35. Ke3 {[%clk 0:01:21.7]} 35... Rc8 {[%clk 0:01:41.5]} 36. Rh4
{[%clk 0:01:20.4]} 36... Kg6 {[%clk 0:01:40.8]} 37. g4 {[%clk 0:01:19.5]} 37...
Rc4 {[%clk 0:01:39.2]} 38. gxf5+ {[%clk 0:01:15.9]} 38... Bxf5 {[%clk 0:01:39]}
39. Rf4 {[%clk 0:01:09.6]} 39... Ra4 {[%clk 0:01:36.5]} 40. Rf2 {[%clk
0:01:02.5]} 40... Rxa5 {[%clk 0:01:35.7]} 41. d5 {[%clk 0:01:00.3]} 41... b4
{[%clk 0:01:33.4]} 42. c4 {[%clk 0:00:59.6]} 42... b3 {[%clk 0:01:31.1]} 43. Kd4
{[%clk 0:00:59.4]} 43... Ra1 {[%clk 0:01:28.2]} 44. Kc3 {[%clk 0:00:57.7]} 44...
Bc2 {[%clk 0:01:20.6]} 45. c5 {[%clk 0:00:57.9]} 45... Rd1 {[%clk 0:01:18.5]}
46. d6 {[%clk 0:00:55.7]} 46... a5 {[%clk 0:01:14.4]} 47. Rf4 {[%clk 0:00:34.4]}
47... Rd3+ {[%clk 0:01:12]} 48. Kc4 {[%clk 0:00:33.9]} 48... a4 {[%clk
0:01:11.8]} 49. Kb4 {[%clk 0:00:26]} 49... Rd5 {[%clk 0:01:02.5]} 50. Rc4 {[%clk
0:00:25.3]} 50... Kf6 {[%clk 0:00:58.4]} 51. Kxa4 {[%clk 0:00:24.2]} 51... Ke6
{[%clk 0:00:48.3]} 52. Ka5 {[%clk 0:00:24.4]} 52... Bd3 {[%clk 0:00:41.7]} 53.
Rc3 {[%clk 0:00:24]} 53... Be4 {[%clk 0:00:39.8]} 54. Kb6 {[%clk 0:00:23.3]}
54... Kd7 {[%clk 0:00:37.5]} 55. c6+ {[%clk 0:00:20.5]} 55... Kxd6 {[%clk
0:00:37.6]} 56. c7 {[%clk 0:00:21.4]} 56... Bf5 {[%clk 0:00:37.6]} 57. c8=Q
{[%clk 0:00:19.2]} 57... Bxc8 {[%clk 0:00:37]} 58. Rxc8 {[%clk 0:00:20.1]} 58...
Rh5 {[%clk 0:00:34.1]} 59. Rd8+ {[%clk 0:00:19]} 59... Ke7 {[%clk 0:00:33.4]}
60. Rd3 {[%clk 0:00:18.7]} 60... Rxh2 {[%clk 0:00:32.9]} 61. Rxb3 {[%clk
0:00:19.6]} 61... h5 {[%clk 0:00:33]} 62. Re3+ {[%clk 0:00:15.7]} 62... Kd6
{[%clk 0:00:31.7]} 63. b4 {[%clk 0:00:16.6]} 63... h4 {[%clk 0:00:31.2]} 64. b5
{[%clk 0:00:17.5]} 64... h3 {[%clk 0:00:30.4]} 65. Rd3+ {[%clk 0:00:18.4]} 65...
Ke7 {[%clk 0:00:28.7]} 66. Kc7 {[%clk 0:00:17.4]} 66... Rh1 {[%clk 0:00:28.6]}
67. b6 {[%clk 0:00:15.9]} 67... h2 {[%clk 0:00:27.5]} 68. Re3+ {[%clk
0:00:16.2]} 68... Kf6 {[%clk 0:00:26.2]} 69. Rh3 {[%clk 0:00:10.9]} 69... Rc1+
{[%clk 0:00:25.3]} 70. Kb8 {[%clk 0:00:11.2]} 70... h1=Q {[%clk 0:00:25]} 71.
Rxh1 {[%clk 0:00:12.1]} 71... Rxh1 {[%clk 0:00:23.7]} 72. b7 {[%clk 0:00:13]}
72... Ke7 {[%clk 0:00:22]} 73. Ka7 {[%clk 0:00:11.2]} 73... Ra1+ {[%clk
0:00:21.3]} 74. Kb6 {[%clk 0:00:11.5]} 74... Kd7 {[%clk 0:00:20]} 75. b8=Q
{[%clk 0:00:11.1]} 75... Rb1+ {[%clk 0:00:20]} 76. Ka7 {[%clk 0:00:11.5]} 76...
Rxb8 {[%clk 0:00:19.9]} 77. Kxb8 {[%clk 0:00:11.7]} 1/2-1/2

[Event "*** Titled Tuesday Blitz"]
[Site "Chess.com"]
[Date "2021.04.06"]
[Round "3"]
[White "TosicSrecko"]
[Black "CheckThis4"]
[Result "0-1"]
[WhiteElo "2320"]
[BlackElo "2622"]
[TimeControl "180+1"]
[EndTime "10:30:12 PDT"]
[Termination "CheckThis4 won on time"]

1. e4 {[%clk 0:03:00.9]} 1... d5 {[%clk 0:02:59.2]} 2. exd5 {[%clk 0:03:00.3]}
2... Nf6 {[%clk 0:02:59.4]} 3. d4 {[%clk 0:02:59.4]} 3... Bg4 {[%clk 0:02:59.1]}
4. Be2 {[%clk 0:02:58.9]} 4... Bxe2 {[%clk 0:02:58.1]} 5. Qxe2 {[%clk
0:02:59.8]} 5... Qxd5 {[%clk 0:02:58]} 6. Nf3 {[%clk 0:02:59.6]} 6... Nc6 {[%clk
0:02:58]} 7. Nc3 {[%clk 0:02:51.4]} 7... Qf5 {[%clk 0:02:48.8]} 8. O-O {[%clk
0:02:41.3]} 8... O-O-O {[%clk 0:02:46.4]} 9. Be3 {[%clk 0:02:41.7]} 9... e6
{[%clk 0:02:38.4]} 10. Rfd1 {[%clk 0:02:20]} 10... Nd5 {[%clk 0:02:18.1]} 11.
Nxd5 {[%clk 0:02:13.9]} 11... exd5 {[%clk 0:02:19]} 12. Qd3 {[%clk 0:02:03.5]}
12... Qxd3 {[%clk 0:02:07.2]} 13. Rxd3 {[%clk 0:02:04.4]} 13... Bd6 {[%clk
0:02:07]} 14. c3 {[%clk 0:02:01.2]} 14... f6 {[%clk 0:02:03.5]} 15. Kf1 {[%clk
0:02:00]} 15... Ne7 {[%clk 0:01:56.8]} 16. Re1 {[%clk 0:01:56.6]} 16... h5
{[%clk 0:01:48]} 17. Bd2 {[%clk 0:01:46]} 17... Nf5 {[%clk 0:01:46.5]} 18. Bc1
{[%clk 0:01:36.5]} 18... h4 {[%clk 0:01:40.6]} 19. h3 {[%clk 0:01:35.5]} 19...
c6 {[%clk 0:01:36.8]} 20. Ng1 {[%clk 0:01:33.4]} 20... Kd7 {[%clk 0:01:32.7]}
21. Ne2 {[%clk 0:01:25.7]} 21... Rde8 {[%clk 0:01:24]} 22. Rf3 {[%clk
0:01:13.4]} 22... g6 {[%clk 0:01:19.2]} 23. Bf4 {[%clk 0:01:11.5]} 23... Bf8
{[%clk 0:00:55.9]} 24. Nc1 {[%clk 0:01:05.1]} 24... Rxe1+ {[%clk 0:00:54.2]} 25.
Kxe1 {[%clk 0:01:06]} 25... Bg7 {[%clk 0:00:48.7]} 26. Nd3 {[%clk 0:01:05.2]}
26... Re8+ {[%clk 0:00:48.3]} 27. Kd1 {[%clk 0:00:57.2]} 27... b6 {[%clk
0:00:48.5]} 28. Bd2 {[%clk 0:00:49.9]} 28... Nd6 {[%clk 0:00:45.9]} 29. Re3
{[%clk 0:00:44.7]} 29... Rxe3 {[%clk 0:00:39.2]} 30. Bxe3 {[%clk 0:00:45.6]}
30... Nc4 {[%clk 0:00:38.9]} 31. Bc1 {[%clk 0:00:44.2]} 31... g5 {[%clk
0:00:37.6]} 32. Ke2 {[%clk 0:00:42.2]} 32... Bf8 {[%clk 0:00:34.9]} 33. Kf3
{[%clk 0:00:38.9]} 33... Ke6 {[%clk 0:00:34.7]} 34. g3 {[%clk 0:00:38.7]} 34...
hxg3 {[%clk 0:00:32.6]} 35. fxg3 {[%clk 0:00:39.6]} 35... Kf5 {[%clk 0:00:32.7]}
36. h4 {[%clk 0:00:34.1]} 36... g4+ {[%clk 0:00:22.9]} 37. Ke2 {[%clk
0:00:32.8]} 37... Nd6 {[%clk 0:00:22.6]} 38. Nf2 {[%clk 0:00:28.4]} 38... c5
{[%clk 0:00:19.5]} 39. Bf4 {[%clk 0:00:22.6]} 39... Nc4 {[%clk 0:00:17.2]} 40.
Bc1 {[%clk 0:00:19.5]} 40... cxd4 {[%clk 0:00:16.9]} 41. cxd4 {[%clk 0:00:19.2]}
41... Nd6 {[%clk 0:00:17]} 42. Kd3 {[%clk 0:00:17.1]} 42... Ne4 {[%clk
0:00:14.2]} 43. Nxe4 {[%clk 0:00:16.8]} 43... dxe4+ {[%clk 0:00:15.1]} 44. Ke2
{[%clk 0:00:17.4]} 44... Bd6 {[%clk 0:00:14.7]} 45. Kf2 {[%clk 0:00:17]} 45...
Ke6 {[%clk 0:00:12.6]} 46. Be3 {[%clk 0:00:15.2]} 46... f5 {[%clk 0:00:12.9]}
47. Bf4 {[%clk 0:00:10.3]} 47... Bf8 {[%clk 0:00:12.5]} 48. Ke3 {[%clk
0:00:09.7]} 48... Bg7 {[%clk 0:00:12.1]} 49. h5 {[%clk 0:00:09.8]} 49... Kf7
{[%clk 0:00:10.5]} 50. h6 {[%clk 0:00:09.2]} 50... Bf6 {[%clk 0:00:10.6]} 51. d5
{[%clk 0:00:09.3]} 51... Kg6 {[%clk 0:00:09.8]} 52. d6 {[%clk 0:00:08.9]} 52...
Bd8 {[%clk 0:00:09.7]} 53. Kd4 {[%clk 0:00:08]} 53... a6 {[%clk 0:00:09.7]} 54.
Kd5 {[%clk 0:00:08]} 54... b5 {[%clk 0:00:10.1]} 55. Kc6 {[%clk 0:00:07.8]}
55... b4 {[%clk 0:00:09.5]} 56. Kc5 {[%clk 0:00:07.3]} 56... a5 {[%clk
0:00:09.3]} 57. b3 {[%clk 0:00:07.3]} 57... Kf6 {[%clk 0:00:07.6]} 58. Kc6
{[%clk 0:00:06.8]} 58... Kg6 {[%clk 0:00:07.6]} 59. Kd7 {[%clk 0:00:06.6]} 59...
Bb6 {[%clk 0:00:07.7]} 60. Ke8 {[%clk 0:00:05.8]} 60... e3 {[%clk 0:00:07.7]}
61. d7 {[%clk 0:00:05.3]} 61... e2 {[%clk 0:00:07.7]} 62. Bd2 {[%clk 0:00:05.7]}
62... Bc7 {[%clk 0:00:07.8]} 63. d8=Q {[%clk 0:00:04]} 63... Bxd8 {[%clk
0:00:07.8]} 64. Kxd8 {[%clk 0:00:04.9]} 64... f4 {[%clk 0:00:08.2]} 65. Be1
{[%clk 0:00:01.9]} 65... fxg3 {[%clk 0:00:05.3]} 66. Bxg3 {[%clk 0:00:02.8]}
66... Kxh6 {[%clk 0:00:05.9]} 67. Kc7 {[%clk 0:00:03.1]} 67... Kg5 {[%clk
0:00:06.5]} 68. Kb6 {[%clk 0:00:03]} 68... Kf5 {[%clk 0:00:07.4]} 69. Kxa5
{[%clk 0:00:03]} 69... Ke4 {[%clk 0:00:08.3]} 70. Kxb4 {[%clk 0:00:03]} 70...
Kf3 {[%clk 0:00:09.2]} 71. Be1 {[%clk 0:00:01.7]} 71... g3 {[%clk 0:00:10.1]}
72. a3 {[%clk 0:00:01.1]} 72... g2 {[%clk 0:00:11]} 0-1